fUSD/lending_fUSD_20251030
["ID","MTS","AMOUNT","RATE_DAILY","PERIOD"]
[392668274,1761803432096,-305.32,0.000147,2]
[392668275,1761803432106,-869.7082797,0.00014716,2]
[392668276,1761803432115,-163.97,0.00014757,2]
[392668277,1761803432125,-178.0,0.00014766,2]
[392668278,1761803432137,-548.44,0.000148,2]
[392668279,1761803432153,-150.0,0.000148,2]
[392668280,1761803432163,-150.0,0.000148,2]
[392668281,1761803432172,-150.0,0.000148,2]
[392668282,1761803432183,-548.44,0.000148,2]
[392668283,1761803432192,-93.02323712,0.000148,2]
[392668284,1761803432206,-56.97676288,0.000148,2]
[392668285,1761803432217,-150.0,0.000148,2]
[392668287,1761803432227,-151.68,0.000148,2]
[392668289,1761803432236,-664.68,0.000148,2]
[392668291,1761803432245,-151.06,0.000148,2]
[392668292,1761803432254,-150.0,0.000148,2]
[392668294,1761803432264,-150.0,0.000148,2]
[392668296,1761803432273,-150.0,0.000148,2]
[392668298,1761803432282,-150.0,0.000148,2]
[392668300,1761803432292,-150.0,0.000148,2]
[392668302,1761803432301,-150.0,0.00014827,2]
[392668304,1761803432311,-2469.6566,0.000149,2]
[392668306,1761803432320,-548.44,0.000149,2]
[392668308,1761803432329,-812.0,0.000149,2]
[392668310,1761803432338,-151.0,0.00014918,2]
[392668312,1761803432348,-151.0,0.00014919,2]
[392668314,1761803432358,-151.0,0.00014921,2]
[392668316,1761803432367,-151.0,0.00014924,2]
[392668318,1761803432376,-151.0,0.00014926,2]
[392668320,1761803432385,-151.0,0.00014942,2]
[392668322,1761803432395,-151.0,0.00014942,2]
[392668324,1761803432404,-151.0,0.00014942,2]
[392668326,1761803432413,-151.0,0.00014942,2]
[392668328,1761803432422,-151.0,0.00014942,2]
[392668330,1761803432431,-151.0,0.00014942,2]
[392668332,1761803432441,-151.0,0.00014942,2]
[392668335,1761803432453,-151.0,0.00014942,2]
[392668337,1761803432462,-151.0,0.00014942,2]
[392668339,1761803432472,-151.0,0.00014942,2]
[392668341,1761803432481,-151.0,0.00014942,2]
[392668343,1761803432490,-151.0,0.00014942,2]
[392668345,1761803432499,-151.0,0.00014942,2]
[392668347,1761803432510,-151.0,0.00014942,2]
[392668349,1761803432519,-151.0,0.00014942,2]
[392668351,1761803432528,-151.0,0.00014942,2]
[392668352,1761803432537,-151.0,0.00014942,2]
[392668355,1761803432547,-151.0,0.00014942,2]
[392668357,1761803432556,-151.0,0.00014942,2]
[392668358,1761803432566,-151.0,0.00014942,2]
[392668360,1761803432575,-209.40437684,0.00014942,2]
[392668363,1761803432585,-151.0,0.00014942,2]
[392668364,1761803432594,-151.0,0.00014942,2]
[392668366,1761803432604,-151.0,0.00014942,2]
[392668368,1761803432613,-151.0,0.00014942,2]
[392668370,1761803432622,-151.0,0.00014942,2]
[392668372,1761803432631,-246.20025685,0.00014942,2]
[392668374,1761803432641,-46896.8839379,0.00014951,2]
[392668376,1761803432650,-319.72676679,0.00014973,2]
[392668378,1761803432659,-500.0,0.00014973,2]
[392668380,1761803432668,-500.0,0.00014973,2]
[392668382,1761803432677,-585.92668695,0.00014973,2]
[392668384,1761803432686,-500.30620079,0.00014973,2]
[392668386,1761803432695,-500.0,0.00014973,2]
[392668388,1761803432706,-392.224,0.00014973,2]
[392668390,1761803432716,-1361.77,0.00014991,2]
[392668392,1761803432726,-820.0,0.00014995,2]
[392668394,1761803432735,-607.0,0.00014995,2]
[392668396,1761803432744,-573.0,0.00014995,2]
[392668398,1761803432754,-3419.0,0.00014995,2]
[392668400,1761803432763,-1594.0,0.00014995,2]
[392668402,1761803432772,-1314.0,0.00014995,2]
[392668404,1761803432781,-1271.0,0.00014995,2]
[392668406,1761803432790,-819.0,0.00014995,2]
[392668408,1761803432800,-3493.0,0.00014995,2]
[392668410,1761803432809,-500.0,0.00014998,2]
[392668412,1761803432819,-203.77512424,0.00014998,2]
[392668414,1761803432828,-178.83236774,0.00014998,2]
[392668416,1761803432837,-150.0,0.00014999,2]
[392668418,1761803432847,-150.0,0.00014999,2]
[392668420,1761803432857,-150.0,0.00014999,2]
[392668422,1761803432866,-150.0,0.00014999,2]
[392668424,1761803432876,-150.0,0.00014999,2]
[392668426,1761803432886,-150.0,0.00014999,2]
[392668429,1761803432897,-500.0,0.00014999,2]
[392668431,1761803432907,-500.0,0.00014999,2]
[392668433,1761803432917,-150.0,0.00014999,2]
[392668434,1761803432927,-500.0,0.00014999,2]
[392668437,1761803432936,-150.0,0.00014999,2]
[392668438,1761803432946,-150.0,0.00014999,2]
[392668441,1761803432956,-500.0,0.00014999,2]
[392668443,1761803432966,-300.0,0.00014999,2]
[392668445,1761803432976,-901.1015544,0.00014999,2]
[392668446,1761803432985,-150.0,0.00014999,2]
[392668448,1761803432994,-150.0,0.00014999,2]
[392668449,1761803433003,-150.0,0.00014999,2]
[392668450,1761803433012,-42987.2965352,0.00014999,2]
[392668451,1761803433022,-150.0,0.00014999,2]
[392668452,1761803433031,-150.0,0.00014999,2]
[392668453,1761803433041,-150.0,0.00014999,2]
[392668454,1761803433050,-150.0,0.00014999,2]
[392668455,1761803433060,-500.0,0.00014999,2]
[392668456,1761803433069,-500.0,0.00014999,2]
[392668457,1761803433078,-516.00192321,0.00014999,2]
[392668458,1761803433088,-500.0,0.00014999,2]
[392668459,1761803433098,-500.0,0.00014999,2]
[392668460,1761803433107,-500.0,0.00014999,2]
[392668461,1761803433117,-571.48470191,0.00014999,2]
[392668462,1761803433127,-150.0,0.00014999,2]
[392668463,1761803433139,-150.0,0.00014999,2]
[392668464,1761803433148,-500.0,0.00014999,2]
[392668465,1761803433157,-500.0,0.00014999,2]
[392668466,1761803433168,-150.0,0.00014999,2]
[392668467,1761803433178,-500.0,0.00014999,2]
[392668468,1761803433188,-666.0,0.00014999,2]
[392668469,1761803433198,-2412.0,0.00015,2]
[392668470,1761803433210,-57724.54928461,0.00015,2]
[392668471,1761803433222,-137136.09731958,0.00015,2]
[392668472,1761803433246,-342.53079982,0.00015,2]
[392668473,1761803433257,-2452.0,0.00015,2]
[392668474,1761803433268,-26232.60830784,0.00015,2]
[392668476,1761803437388,-500.0,0.00014973,2]
[392668477,1761803437399,-785.22464554,0.00015,2]
[392668478,1761803437501,-2478.77490442,0.00015,2]
[392668507,1761803439634,-623.27311337,0.00015,2]
[392668508,1761803439646,-620.36104505,0.00015,2]
[392668509,1761803440095,-151.0,0.00014995,2]
[392668510,1761803440107,-2648.69856743,0.00015,2]
[392668511,1761803440120,-485.70499992,0.00015,2]
[392668512,1761803440132,-552.1,0.00015,2]
[392668524,1761803442565,-151.0,0.00014924,2]
[392668525,1761803442581,-55107.1868736,0.00015,2]
[392668526,1761803442593,-275.2599999,0.00015,2]
[392668531,1761803445760,-569.86421569,0.00014995,2]
[392668599,1761803494816,939.66701373,0.00018,30]
[392668602,1761803774655,1559.25702256,0.00013,2]
[392668644,1761804316153,150.0,0.00013488,2]
[392668645,1761804321007,151.34431541,0.00013488,2]
[392668646,1761804329978,150.00000001,0.00013488,2]
[392668647,1761804330086,150.0,0.00013488,2]
[392668650,1761804422823,200.0,0.00015,120]
[392668651,1761804626609,5516.0,0.00016,3]
[392668659,1761804631668,-174.64690883,0.00013845,2]
[392668660,1761804631677,-250.0,0.00013849,2]
[392668661,1761804631688,-140.35309117,0.00013852,2]
[392668662,1761804631699,-859.64690883,0.00013852,2]
[392668663,1761804631708,-1763.76292102,0.00013952,2]
[392668664,1761804631720,-388.54707898,0.00013952,2]
[392668665,1761804631734,-255.04,0.00013972,2]
[392668666,1761804631744,-105.57018869,0.00013985,2]
[392668667,1761804631777,-44.42981131,0.00013985,2]
[392668668,1761804631787,-329.69297672,0.00013999,2]
[392668669,1761804631798,-170.30702328,0.00013999,2]
[392668670,1761804631808,-300.0,0.00014051,2]
[392668671,1761804631817,-1200.0,0.00014052,2]
[392668672,1761804631827,-300.0,0.00014053,2]
[392668673,1761804631837,-1200.0,0.00014053,2]
[392668674,1761804631847,-300.0,0.00014053,2]
[392668675,1761804631856,-690.94,0.00014054,2]
[392668676,1761804631866,-500.0,0.00014054,2]
[392668677,1761804631876,-500.0,0.00014054,2]
[392668678,1761804631886,-338.83096419,0.00014054,2]
[392668679,1761804631895,-23.10151253,0.00014236,2]
[392668681,1761804631907,-244.3592305,0.00014236,2]
[392668683,1761804631916,-256.0,0.00014445,2]
[392668685,1761804631926,-252.52556545,0.00014445,2]
[392668687,1761804631936,-208.0,0.00014474,2]
[392668689,1761804631946,-166.66,0.00014476,2]
[392668691,1761804631956,-1098.0,0.00014483,2]
[392668693,1761804631965,-887.0,0.00014512,2]
[392668695,1761804631975,-1884.0,0.0001454,2]
[392668697,1761804631985,-643.0,0.00014541,2]
[392668699,1761804631995,-617.0,0.00014569,2]
[392668701,1761804632005,-1719.0,0.0001457,2]
[392668702,1761804632014,-869.7082797,0.00014591,2]
[392668703,1761804632024,-1507.23135458,0.00014598,2]
[392668704,1761804632033,-534.0,0.00014599,2]
[392668705,1761804632043,-719.99,0.000146,2]
[392668706,1761804632052,-402.42,0.000146,2]
[392668707,1761804632062,-150.0,0.000146,2]
[392668708,1761804632071,-400.53,0.000146,2]
[392668709,1761804632080,-168.77,0.000146,2]
[392668710,1761804632089,-168.77,0.000146,2]
[392668711,1761804632099,-168.77,0.000146,2]
[392668712,1761804632108,-150.0,0.00014799,2]
[392668713,1761804632118,-1508.11280273,0.000148,2]
[392668714,1761804632128,-457.52,0.000148,2]
[392668715,1761804632137,-150.0,0.000148,2]
[392668716,1761804632147,-150.0,0.000148,2]
[392668718,1761804632156,-348.77,0.000148,2]
[392668720,1761804632165,-150.0,0.000148,2]
[392668722,1761804632175,-415.1,0.000148,2]
[392668724,1761804632184,-696.68,0.000148,2]
[392668726,1761804632194,-162.85,0.000148,2]
[392668728,1761804632204,-302.13,0.000148,2]
[392668730,1761804632214,-415.1,0.000148,2]
[392668733,1761804632225,-150.0,0.000148,2]
[392668735,1761804632235,-415.1,0.000148,2]
[392668737,1761804632244,-150.0,0.000148,2]
[392668739,1761804632255,-150.0,0.000148,2]
[392668741,1761804632266,-317.51,0.000148,2]
[392668743,1761804632276,-415.1,0.000148,2]
[392668745,1761804632286,-1248.29,0.000148,2]
[392668747,1761804632296,-3493.0,0.00014844,2]
[392668749,1761804632306,-1187.0,0.00014844,2]
[392668751,1761804632315,-904.0,0.00014844,2]
[392668753,1761804632325,-1212.48032,0.0001485,2]
[392668755,1761804632335,-200.0,0.0001488,2]
[392668757,1761804632344,-168.0,0.00014881,2]
[392668759,1761804632354,-168.0,0.00014887,2]
[392668761,1761804632364,-151.0,0.00014891,2]
[392668763,1761804632373,-151.0,0.00014891,2]
[392668765,1761804632382,-151.0,0.00014891,2]
[392668767,1761804632391,-151.0,0.00014891,2]
[392668769,1761804632400,-151.0,0.00014891,2]
[392668771,1761804632409,-151.0,0.00014891,2]
[392668774,1761804632418,-151.0,0.00014891,2]
[392668775,1761804632427,-151.0,0.00014891,2]
[392668778,1761804632437,-521.63904443,0.00014891,2]
[392668780,1761804632447,-151.0,0.00014891,2]
[392668782,1761804632456,-250.0,0.00014891,2]
[392668783,1761804632465,-710.41112089,0.00014891,2]
[392668785,1761804632475,-151.0,0.00014891,2]
[392668787,1761804632484,-151.0,0.00014891,2]
[392668789,1761804632494,-151.0,0.00014891,2]
[392668792,1761804632503,-154.08873954,0.00014891,2]
[392668793,1761804632512,-151.0,0.00014891,2]
[392668795,1761804632522,-154.21304123,0.00014891,2]
[392668797,1761804632532,-209.79513094,0.00014891,2]
[392668800,1761804632541,-151.0,0.00014891,2]
[392668801,1761804632550,-500.0,0.00014891,2]
[392668804,1761804632564,-151.0,0.00014891,2]
[392668805,1761804632573,-151.0,0.00014891,2]
[392668807,1761804632584,-151.0,0.00014891,2]
[392668808,1761804632593,-151.0,0.00014891,2]
[392668809,1761804632603,-151.0,0.00014891,2]
[392668810,1761804632612,-163.91099021,0.00014891,2]
[392668811,1761804632620,-151.0,0.00014891,2]
[392668812,1761804632629,-151.0,0.00014891,2]
[392668813,1761804632640,-500.0,0.00014891,2]
[392668814,1761804632648,-541.37027117,0.00014891,2]
[392668815,1761804632657,-250.0,0.00014891,2]
[392668816,1761804632666,-250.0,0.00014891,2]
[392668817,1761804632675,-152.30214979,0.00014891,2]
[392668818,1761804632684,-553.64373807,0.00014891,2]
[392668819,1761804632693,-201.93286099,0.00014891,2]
[392668820,1761804632702,-519.47269928,0.00014891,2]
[392668821,1761804632711,-205.22211139,0.00014891,2]
[392668823,1761804632721,-267.07733758,0.00014891,2]
[392668825,1761804632730,-250.0,0.00014891,2]
[392668827,1761804632739,-2385.22613502,0.00014898,2]
[392668829,1761804632749,-1193.04221401,0.000149,2]
[392668831,1761804632758,-1193.042214,0.000149,2]
[392668833,1761804632767,-762.63650739,0.000149,2]
[392668835,1761804632776,-2593.5934,0.000149,2]
[392668838,1761804632787,-1000.0,0.000149,2]
[392668840,1761804632796,-646.211,0.000149,2]
[392668842,1761804632805,-548.57,0.000149,2]
[392668844,1761804632814,-548.57,0.000149,2]
[392668846,1761804632823,-1000.0,0.000149,2]
[392668847,1761804632831,-43522.90152525,0.000149,2]
[392668849,1761804632841,-151.0,0.00014906,2]
[392668851,1761804632850,-151.0,0.00014908,2]
[392668854,1761804632860,-151.0,0.00014908,2]
[392668855,1761804632869,-151.0,0.00014909,2]
[392668857,1761804632878,-166.66,0.00014954,2]
[392668860,1761804632887,-500.0,0.00014973,2]
[392668861,1761804632897,-500.0,0.00014973,2]
[392668863,1761804632906,-503.0663356,0.00014973,2]
[392668866,1761804632915,-500.0,0.00014973,2]
[392668867,1761804632924,-500.0,0.00014973,2]
[392668869,1761804632934,-355.47501076,0.00014973,2]
[392668872,1761804632943,-313.779,0.00014991,2]
[392668873,1761804632953,-259.0,0.00014995,2]
[392668875,1761804632963,-150.0,0.00014995,2]
[392668877,1761804632972,-150.709,0.00014995,2]
[392668879,1761804632981,-150.832,0.00014995,2]
[392668881,1761804632990,-150.548,0.00014995,2]
[392668883,1761804632998,-150.0,0.00014995,2]
[392668885,1761804633008,-288.34,0.00014995,2]
[392668887,1761804633018,-150.0,0.00014995,2]
[392668889,1761804633027,-150.622,0.00014995,2]
[392668891,1761804633037,-607.0,0.00014995,2]
[392668893,1761804633046,-573.0,0.00014995,2]
[392668895,1761804633055,-3419.0,0.00014995,2]
[392668897,1761804633065,-820.0,0.00014995,2]
[392668899,1761804633074,-1594.0,0.00014995,2]
[392668901,1761804633083,-1314.0,0.00014995,2]
[392668903,1761804633093,-1271.0,0.00014995,2]
[392668905,1761804633102,-819.0,0.00014995,2]
[392668907,1761804633111,-475.18265742,0.00014998,2]
[392668909,1761804633121,-500.0,0.00014999,2]
[392668911,1761804633131,-500.0,0.00014999,2]
[392668913,1761804633140,-500.0,0.00014999,2]
[392668915,1761804633150,-500.0,0.00014999,2]
[392668917,1761804633159,-500.0,0.00014999,2]
[392668919,1761804633168,-500.0,0.00014999,2]
[392668921,1761804633178,-500.0,0.00014999,2]
[392668923,1761804633187,-500.0,0.00014999,2]
[392668925,1761804633196,-500.0,0.00014999,2]
[392668927,1761804633205,-500.0,0.00014999,2]
[392668929,1761804633215,-336.8,0.00014999,2]
[392668931,1761804633229,-505.13063677,0.00014999,2]
[392668933,1761804633239,-512.63502965,0.00014999,2]
[392668935,1761804633248,-354.05632821,0.00014999,2]
[392668937,1761804633258,-500.0,0.00014999,2]
[392668939,1761804633267,-500.0,0.00014999,2]
[392668941,1761804633276,-500.0,0.00014999,2]
[392668943,1761804633285,-641.3407631,0.00014999,2]
[392668946,1761804633298,-509.70539372,0.00014999,2]
[392668948,1761804633308,-563.02409772,0.00014999,2]
[392668950,1761804633317,-150.0,0.00014999,2]
[392668952,1761804633326,-150.0,0.00014999,2]
[392668954,1761804633335,-155.0,0.00014999,2]
[392668956,1761804633346,-150.0,0.00014999,2]
[392668958,1761804633356,-500.0,0.00014999,2]
[392668960,1761804633365,-150.0,0.00014999,2]
[392668962,1761804633375,-150.0,0.00014999,2]
[392668964,1761804633385,-150.0,0.00014999,2]
[392668966,1761804633395,-500.0,0.00014999,2]
[392668968,1761804633404,-300.0,0.00014999,2]
[392668970,1761804633413,-150.0,0.00014999,2]
[392668972,1761804633423,-500.0,0.00014999,2]
[392668974,1761804633432,-500.0,0.00014999,2]
[392668976,1761804633442,-500.0,0.00014999,2]
[392668978,1761804633451,-509.12808519,0.00014999,2]
[392668980,1761804633460,-500.0,0.00014999,2]
[392668982,1761804633470,-500.0,0.00014999,2]
[392668984,1761804633479,-500.0,0.00014999,2]
[392668986,1761804633489,-500.0,0.00014999,2]
[392668988,1761804633499,-500.0,0.00014999,2]
[392668990,1761804633511,-500.0,0.00014999,2]
[392668992,1761804633521,-500.0,0.00014999,2]
[392668994,1761804633530,-500.0,0.00014999,2]
[392668996,1761804633539,-626.15434091,0.00014999,2]
[392668998,1761804633550,-150.0,0.00014999,2]
[392669000,1761804633564,-203.04390248,0.00014999,2]
[392669002,1761804633574,-500.0,0.00014999,2]
[392669005,1761804633584,-500.0,0.00014999,2]
[392669007,1761804633594,-194.80036255,0.00014999,2]
[392669009,1761804633606,-150.0,0.00014999,2]
[392669011,1761804633616,-150.0,0.00014999,2]
[392669013,1761804633625,-150.0,0.00014999,2]
[392669015,1761804633635,-200.0,0.00014999,2]
[392669017,1761804633646,-150.0,0.00014999,2]
[392669019,1761804633655,-500.0,0.00014999,2]
[392669021,1761804633665,-500.0,0.00014999,2]
[392669023,1761804633674,-682.64160043,0.00014999,2]
[392669025,1761804633683,-1512.0,0.00015,2]
[392669027,1761804633693,-23671.79620519,0.00015,2]
[392669029,1761804633707,-772.82728058,0.00015,2]
[392669031,1761804633719,-1231.20141571,0.00015,2]
[392669201,1761804637629,-500.0,0.0001489,2]
[392669202,1761804637640,-500.0,0.0001489,2]
[392669203,1761804637649,-500.0,0.0001489,2]
[392669204,1761804637658,-500.0,0.0001489,2]
[392669205,1761804637668,-500.0,0.0001489,2]
[392669206,1761804637677,-500.0,0.0001489,2]
[392669207,1761804637687,-500.0,0.0001489,2]
[392669208,1761804637697,-500.0,0.0001489,2]
[392669209,1761804637706,-500.0,0.0001489,2]
[392669210,1761804637716,-263.37195788,0.0001489,2]
[392669211,1761804637724,-151.0,0.00014909,2]
[392669212,1761804637734,-1038.02786605,0.00015,2]
[392669213,1761804637745,-902.32163095,0.00015,2]
[392669214,1761804637757,-794.75224052,0.00015,2]
[392669215,1761804637768,-490.924,0.00015,2]
[392669216,1761804637807,-1512.06814833,0.00015,2]
[392669217,1761804637818,-419.075,0.00015,2]
[392669255,1761804639651,-638.17418184,0.00015,2]
[392669256,1761804639877,-963229.28161551,0.00015,2]
[392669257,1761804639995,-27605.0,0.00015,2]
[392669268,1761804642806,-235.47660104,0.00015,2]
[392669269,1761804642818,-1596.19637114,0.00015,2]
[392669291,1761804645732,-11651.35184316,0.00015,2]
[392669310,1761804657996,5516.0,0.00016,3]
[392669311,1761804689878,5516.0,0.000158,3]
[392669312,1761804721299,5516.0,0.000158,3]
[392669313,1761804753799,2753.63048964,0.000156,3]
[392669314,1761804785768,5516.0,0.000155,3]
[392669315,1761804817148,5516.0,0.000155,3]
[392669316,1761804849059,5516.0,0.000153,3]
[392669317,1761804880470,5516.0,0.000153,3]
[392669320,1761804912381,5516.0,0.000151,3]
[392669321,1761804912700,-246.92675545,0.00013699,2]
[392669322,1761804944178,5516.0,0.000151,3]
[392669323,1761804976371,5516.0,0.000155,5]
[392669324,1761804976603,5516.0,0.000149,3]
[392669325,1761805008025,5516.0,0.000155,5]
[392669326,1761805008268,4941.0,0.000149,3]
[392669327,1761805092762,-581.60324455,0.00013699,2]
[392669328,1761805092791,-84.39675545,0.00013749,2]
[392669329,1761805152759,-215.60324455,0.00013749,2]
[392669330,1761805152782,-34.39675561,0.00013774,2]
[392669331,1761805332788,-160.60324439,0.00013774,2]
[392669332,1761805332809,-89.39675561,0.00013786,2]
[392669333,1761805341742,500.00000016,0.00013,2]
[392669334,1761805352933,666.0,0.00013,2]
[392669341,1761805644712,181.17,6.979e-05,2]
[392669342,1761805644964,181.17,7.346e-05,2]
[392669343,1761805645414,181.17,7.714e-05,2]
[392669344,1761805645613,181.17,8.081e-05,2]
[392669345,1761805645816,181.17,8.448e-05,2]
[392669346,1761805646243,181.17,8.815e-05,2]
[392669347,1761805646446,181.17,9.183e-05,2]
[392669348,1761805646656,181.17,9.55e-05,2]
[392669349,1761805647053,181.17,9.917e-05,2]
[392669350,1761805647271,181.17,0.00010285,2]
[392669351,1761805647601,181.17,0.00010652,2]
[392669352,1761805647675,181.17,0.00011019,2]
[392669353,1761805647870,181.17,0.00011387,2]
[392669354,1761805648084,181.17,0.00011754,2]
[392669355,1761805648285,181.17,0.00012121,2]
[392669356,1761805648490,181.17,0.00012489,2]
[392669357,1761805648697,181.17,0.00012856,2]
[392669358,1761805648907,181.17,0.00013223,2]
[392669384,1761805831830,-181.17,0.00013591,2]
[392669385,1761805831840,-250.0,0.00013802,2]
[392669386,1761805831851,-195.0,0.00013805,2]
[392669387,1761805831861,-2500.0,0.00013805,2]
[392669388,1761805831871,-421.88906453,0.00013805,2]
[392669389,1761805831883,-871.98025582,0.00013805,2]
[392669390,1761805831895,-258.38525471,0.00013805,2]
[392669391,1761805831909,-801.98263016,0.00013805,2]
[392669392,1761805831921,-145.76279478,0.00013805,2]
[392669393,1761805831931,-2500.0,0.00013805,2]
[392669394,1761805831940,-2500.0,0.00013805,2]
[392669395,1761805831950,-337.92378644,0.00013807,2]
[392669396,1761805831965,-250.0,0.00013868,2]
[392669397,1761805831975,-181.17,0.00013958,2]
[392669398,1761805831984,-200.0,0.00013973,2]
[392669399,1761805831994,-1200.0,0.00013989,2]
[392669400,1761805832006,-6214.49495681,0.0001399,2]
[392669401,1761805832016,-572.52,0.0001405,2]
[392669402,1761805832026,-300.0,0.00014636,2]
[392669403,1761805832039,-1200.0,0.00014638,2]
[392669404,1761805832048,-869.7082797,0.00014653,2]
[392669405,1761805832058,-386.0,0.00014754,2]
[392669406,1761805832067,-168.77,0.000148,2]
[392669407,1761805832077,-168.77,0.000148,2]
[392669408,1761805832086,-168.77,0.000148,2]
[392669409,1761805832095,-168.77,0.000148,2]
[392669410,1761805832104,-1094.96,0.000148,2]
[392669411,1761805832114,-548.44,0.000148,2]
[392669412,1761805832123,-1010.40026,0.0001485,2]
[392669414,1761805832132,-2500.0,0.00014898,2]
[392669416,1761805832142,-150.0,0.00014899,2]
[392669418,1761805832151,-19978.5128,0.000149,2]
[392669420,1761805832160,-1000.0,0.000149,2]
[392669422,1761805832169,-270.07333545,0.00014948,2]
[392669423,1761805832179,-500.0,0.00014948,2]
[392669424,1761805832188,-500.0,0.00014948,2]
[392669425,1761805832197,-500.0,0.00014948,2]
[392669426,1761805832207,-500.0,0.00014948,2]
[392669427,1761805832215,-500.0,0.00014948,2]
[392669429,1761805832224,-500.0,0.00014948,2]
[392669431,1761805832233,-500.0,0.00014948,2]
[392669433,1761805832243,-476.11721404,0.00014948,2]
[392669435,1761805832252,-500.0,0.00014948,2]
[392669437,1761805832262,-500.0,0.00014948,2]
[392669439,1761805832272,-500.0,0.00014948,2]
[392669442,1761805832282,-500.0,0.00014948,2]
[392669445,1761805832291,-500.0,0.00014948,2]
[392669448,1761805832300,-500.0,0.00014948,2]
[392669451,1761805832309,-500.0,0.00014948,2]
[392669453,1761805832318,-500.0,0.00014948,2]
[392669455,1761805832328,-500.0,0.00014948,2]
[392669457,1761805832337,-500.0,0.00014948,2]
[392669459,1761805832346,-500.0,0.00014948,2]
[392669461,1761805832355,-500.0,0.00014948,2]
[392669463,1761805832364,-500.0,0.00014948,2]
[392669465,1761805832374,-500.0,0.00014948,2]
[392669467,1761805832385,-500.0,0.00014948,2]
[392669469,1761805832395,-500.0,0.00014948,2]
[392669471,1761805832406,-500.0,0.00014948,2]
[392669474,1761805832430,-195.0,0.0001495,2]
[392669476,1761805832439,-150.0,0.0001495,2]
[392669478,1761805832450,-150.0,0.0001495,2]
[392669480,1761805832460,-300.0,0.0001495,2]
[392669482,1761805832470,-195.0,0.0001495,2]
[392669484,1761805832480,-2500.0,0.0001495,2]
[392669486,1761805832490,-15259.87105998,0.0001495,2]
[392669488,1761805832500,-151.0,0.00014954,2]
[392669490,1761805832510,-151.0,0.00014954,2]
[392669492,1761805832519,-151.0,0.00014955,2]
[392669494,1761805832529,-151.0,0.00014955,2]
[392669496,1761805832538,-251.023,0.00014964,2]
[392669498,1761805832547,-500.0,0.00014973,2]
[392669500,1761805832558,-500.0,0.00014973,2]
[392669502,1761805832567,-500.0,0.00014973,2]
[392669503,1761805832577,-1010.40027,0.0001498,2]
[392669504,1761805832587,-1162.11,0.00014991,2]
[392669505,1761805832596,-151.0,0.00014991,2]
[392669506,1761805832606,-151.0,0.00014991,2]
[392669507,1761805832615,-151.0,0.00014991,2]
[392669508,1761805832626,-151.0,0.00014991,2]
[392669509,1761805832635,-151.0,0.00014991,2]
[392669510,1761805832644,-151.0,0.00014991,2]
[392669511,1761805832654,-151.0,0.00014991,2]
[392669512,1761805832664,-151.0,0.00014991,2]
[392669513,1761805832673,-151.0,0.00014991,2]